Workbook

Sheet Make & Check Formulas
A1: REPRODUCE selected RMA examples in "An Intro to Reliability & Maintainability Engineering, 1st Ed," C. E. Ebeling
B3: Objective:
B4: 1. Make and validate formulas in Excel to calculate Reliability for a new item and three types of Inherent Availability for one or more items (elements) in a series configuration, and
B5: where each item's distribution of times to failure (end of each uptime state) and distribution of times to complete a repair (return to an uptime state) are modeled with the
B6: exponential probability distribution. This type of probability distribution treats the failure rate and repair rate as a constant (fixed) value over time.
B8: Nomenclature, Assumptions, and Observations:
B9: Input Data (yellow-shaded headers or cell): N, λ, μ, t, and r where …
B10: 1. N = number of identical elements in a series configuration.
B11: 2. λ = 1/MTBF and μ = 1/MTTR where MTBF = mean time between failure and MTTR = mean time to repair. Mean is the same as average.
B12: 3. λ and μ are constant over time since the exponential distribution is used to model the failure distribution and the repair distribution.
B13: 4. λ, μ, and t must have the same units of time (e.g., hours). Mission time = t.
B14: 5. For design purposes, view MTBF as a lower-bound parameter and MTTR as an upper-bound parameter.
B15: 6. r is the number repairs (or spares needed) during the mission (from 0 to t). When r = 0, then P = R. When r > 0, then P > R since spares increase mission success.
B16: Output Data: R, A, and P where …
B17: 7. R = Reliability, the probability an item will perform its intended function with no failure during the time interval from 0 to t. R is 0.3679 or less when Nλt is 1.0 or more.
B18: 8. A = Inherent Availability, the probability of mission readiness at point t, the average from 0 to t, and as t becomes large (limiting or steady-state).
B19: 9. As mission time (t) increases, first Point Availability and then Average Availability approximate Limiting Availability.
B20: 10. P = the probability of r or less repairs (spares needed) from 0 to t via the cumulative Poisson distribution. | K20: Let r = | L20: 2
B21: 11. The Poisson distribution does not account for repair time since it assumes failures are immediately repaired or replaced.
C23: Life (Uptime) Parameter | E23: Repair (Downtime) Parameter | I23: Probability Measure | K23: Probability Measures for Inherent Availability | O23: Simulation Generated (2nd check)
A24: GIVEN: Textbook Examples | B24: Number of Identical Serial Elements (N) | C24: Element Failure Rate (λi) | D24: Element MTBF (MTBFi) | E24: Element Repair Rate (μi) | F24: Element MTTR (MTTRi) | G24: Mission Time (t) | H24: Nλt | I24: Reliability From 0 to t (R) | J24: (λ+μ)t | K24: Point Availability, at t (AP) | L24: Average Availability, from 0 to t (AAvg) | M24: Limiting Availability, as t→∞ (AL) | N24: Probability of r or Less Repair Events from 0 to t (P) | O24: Mean Availability, Raptor v 7, 5000 iterations
A25: Ebeling, p. 258, ex 11.2 | B25: 1 | C25: =1/200 -> 0.005 | D25: =1/C25 -> 200 | E25: =1/10 -> 0.1 | F25: =1/E25 -> 10 | G25: 10 | H25: =B25*C25*G25 -> 0.05 | I25: =(EXP(-C25*G25))^B25 -> 0.9512294245 | J25: =(C25+E25)*G25 -> 1.05 | K25: =((E25/(E25+C25))+(C25/(E25+C25))*EXP(-(C25+E25)*G25))^B25 -> 0.9690446547 | L25: =((E25/(E25+C25))+(C25/(((E25+C25)^2)*G25))*(1-EXP(-(C25+E25)*G25)))^B25 -> 0.9818622336 | M25: =(E25/(E25+C25))^B25 -> 0.9523809524 | N25: =POISSON($L$20,H25,TRUE) -> 0.9999799325 | O25: 0.980425
A26: Same as above except t increases | B26: 1 | C26: =1/200 -> 0.005 | D26: =1/C26 -> 200 | E26: =1/10 -> 0.1 | F26: =1/E26 -> 10 | G26: 110 | H26: =B26*C26*G26 -> 0.55 | I26: =(EXP(-C26*G26))^B26 -> 0.5769498104 | J26: =(C26+E26)*G26 -> 11.55 | K26: =((E26/(E26+C26))+(C26/(E26+C26))*EXP(-(C26+E26)*G26))^B26 -> 0.9523814112 | L26: =((E26/(E26+C26))+(C26/(((E26+C26)^2)*G26))*(1-EXP(-(C26+E26)*G26)))^B26 -> 0.9565037739 | M26: =(E26/(E26+C26))^B26 -> 0.9523809524 | N26: =POISSON($L$20,H26,TRUE) -> 0.9815358649 | O26: 0.956097
A27: Ebeling, p. 259, ex 11.3 | B27: 2 | C27: 0.1 | D27: =1/C27 -> 10 | E27: 0.2 | F27: =1/E27 -> 5 | G27: 10 | H27: =B27*C27*G27 -> 2 | I27: 0.1353352832 | J27: =(C27+E27)*G27 -> 3 | K27: =((E27/(E27+C27))+(C27/(E27+C27))*EXP(-(C27+E27)*G27))^B27 -> 0.4668474473 | L27: =((E27/(E27+C27))+(C27/(((E27+C27)^2)*G27))*(1-EXP(-(C27+E27)*G27)))^B27 -> 0.5963637012 | M27: =(E27/(E27+C27))^B27 -> 0.4444444444 | N27: =POISSON($L$20,H27,TRUE) -> 0.6766764162 | O27: 0.602062
A28: Ebeling, p. 267, ex 11.9 | B28: 1 | C28: =1/2100 -> 0.0004761904762 | D28: =1/C28 -> 2100 | E28: =1/5.25 -> 0.1904761905 | F28: =1/E28 -> 5.25 | G28: 10 | H28: =B28*C28*G28 -> 0.004761904762 | I28: 0.9952494151 | J28: =(C28+E28)*G28 -> 1.90952381 | K28: =((E28/(E28+C28))+(C28/(E28+C28))*EXP(-(C28+E28)*G28))^B28 -> 0.9978756881 | L28: =((E28/(E28+C28))+(C28/(((E28+C28)^2)*G28))*(1-EXP(-(C28+E28)*G28)))^B28 -> 0.998618717 | M28: =(E28/(E28+C28))^B28 -> 0.9975062344
B29: 1 | C29: =1/3200 -> 0.0003125 | D29: =1/C29 -> 3200 | E29: =1/8 -> 0.125 | F29: =1/E29 -> 8 | G29: 10 | H29: =B29*C29*G29 -> 0.003125 | I29: =(EXP(-C29*G29))^B29 -> 0.9968798777 | J29: =(C29+E29)*G29 -> 1.253125 | K29: 0.998218481 | L29: 0.9989278955 | M29: 0.9975062344
B30: 1 | C30: =1/5000 -> 0.0002 | D30: 5000 | E30: =1/12.5 -> 0.08 | F30: 12.5 | G30: 10 | H30: 0.002 | I30: 0.9980019987 | J30: 0.802 | K30: 0.9986245167 | L30: 0.9992213008 | M30: 0.9975062344
B31: 1 | C31: =1/1700 -> 0.0005882352941 | D31: 1700 | E31: =1/4.25 -> 0.2352941176 | F31: 4.25 | G31: 10 | H31: 0.005882352941 | I31: 0.9941349142 | J31: 2.358823529 | K31: 0.9977419735 | L31: 0.9984635025 | M31: 0.9975062344
A32: series system calculation | K32: =PRODUCT(K28:K31) -> 0.9924817156 | L32: =PRODUCT(L28:L31) -> 0.9952397669 | M32: 0.9900621889 | O32: 0.995122
A33: Same as above except t increases | B33: 1 | C33: =1/2100 -> 0.0004761904762 | D33: =1/C33 -> 2100 | E33: =1/5.25 -> 0.1904761905 | F33: =1/E33 -> 5.25 | G33: 50 | H33: =B33*C33*G33 -> 0.02380952381 | I33: =(EXP(-C33*G33))^B33 -> 0.9764716867 | J33: =(C33+E33)*G33 -> 9.547619048 | K33: =((E33/(E33+C33))+(C33/(E33+C33))*EXP(-(C33+E33)*G33))^B33 -> 0.9975064124 | L33: =((E33/(E33+C33))+(C33/(((E33+C33)^2)*G33))*(1-EXP(-(C33+E33)*G33)))^B33 -> 0.9977674082 | M33: =(E33/(E33+C33))^B33 -> 0.9975062344
B34: 1 | C34: =1/3200 -> 0.0003125 | D34: =1/C34 -> 3200 | E34: =1/8 -> 0.125 | F34: =1/E34 -> 8 | G34: 50 | H34: =B34*C34*G34 -> 0.015625 | I34: 0.984496437 | J34: =(C34+E34)*G34 -> 6.265625 | K34: 0.9975109739 | L34: 0.9979034855 | M34: 0.9975062344
B35: 1 | C35: =1/5000 -> 0.0002 | D35: 5000 | E35: =1/12.5 -> 0.08 | F35: 12.5 | G35: 50 | H35: 0.01 | I35: 0.9900498337 | J35: 4.01 | K35: 0.9975514549 | L35: 0.9981168442 | M35: 0.9975062344
B36: 1 | C36: =1/1700 -> 0.0005882352941 | D36: 1700 | E36: =1/4.25 -> 0.2352941176 | F36: 4.25 | G36: 50 | H36: 0.02941176471 | I36: 0.9710165518 | J36: 11.79411765 | K36: 0.9975062532 | L36: 0.9977176743 | M36: 0.9975062344
A37: series system calculation | K37: =PRODUCT(K33:K36) -> 0.9901119715 | L37: =PRODUCT(L33:L36) -> 0.9915323855 | M37: =PRODUCT(M33:M36) -> 0.9900621889 | O37: 0.990218
A38: Same as above except t increases | B38: 1 | C38: =1/2100 -> 0.0004761904762 | D38: =1/C38 -> 2100 | E38: =1/5.25 -> 0.1904761905 | F38: =1/E38 -> 5.25 | G38: 100 | H38: =B38*C38*G38 -> 0.04761904762 | I38: =(EXP(-C38*G38))^B38 -> 0.9534969548 | J38: =(C38+E38)*G38 -> 19.0952381 | K38: =((E38/(E38+C38))+(C38/(E38+C38))*EXP(-(C38+E38)*G38))^B38 -> 0.9975062344 | L38: =((E38/(E38+C38))+(C38/(((E38+C38)^2)*G38))*(1-EXP(-(C38+E38)*G38)))^B38 -> 0.9976368306 | M38: =(E38/(E38+C38))^B38 -> 0.9975062344
B39: 1 | C39: =1/3200 -> 0.0003125 | D39: =1/C39 -> 3200 | E39: =1/8 -> 0.125 | F39: =1/E39 -> 8 | G39: 100 | H39: =B39*C39*G39 -> 0.03125 | I39: 0.9692332345 | J39: =(C39+E39)*G39 -> 12.53125 | K39: 0.9975062434 | L39: 0.9977052374 | M39: 0.9975062344
B40: 1 | C40: =1/5000 -> 0.0002 | D40: 5000 | E40: =1/12.5 -> 0.08 | F40: 12.5 | G40: 100 | H40: 0.02 | I40: 0.9801986733 | J40: 8.02 | K40: 0.9975070544 | L40: 0.9978170755 | M40: 0.9975062344
B41: 1 | C41: =1/1700 -> 0.0005882352941 | D41: 1700 | E41: =1/4.25 -> 0.2352941176 | F41: 4.25 | G41: 100 | H41: 0.05882352941 | I41: 0.9428731439 | J41: 23.58823529 | K41: 0.9975062344 | L41: 0.9976119551 | M41: 0.9975062344
A42: series system calculation | K42: =PRODUCT(K38:K41) -> 0.9900630117 | L42: =PRODUCT(L38:L41) -> 0.9908029768 | M42: =PRODUCT(M38:M41) -> 0.9900621889 | O42: 0.990365

Sheet Explore RMA Relationships
B1: EXPLORE the relationships of R, M, and A (based on constant failure and repair rates, λ and μ)
B3: IF | O3: Interim Calculations
C4: Number of Identical Serial Elements (N) | D4: Element Failure Rate (λi) | E4: Element MTBF (MTBFi) | F4: Element Repair Rate (μi) | G4: Element MTTR (MTTRi) | H4: Mission Time (t)--enter time only in cell H5 | I4: Nλt | J4: Reliability From 0 to t (R) | K4: (λ+μ)t | L4: Point Availability, at t (AP) | M4: Average Availability, from 0 to t (AAvg) | N4: Limiting Availability, as t→∞ (AL) | O4: λi * MTTRi | P4: λi/μi
C5: 1 | D5: =1/2100 -> 0.0004761904762 | E5: =1/D5 -> 2100 | F5: =1/5.283061 -> 0.1892842047 | G5: =1/F5 -> 5.283061 | H5: 10 | I5: =C5*D5*H5 -> 0.004761904762 | J5: =(EXP(-D5*H5))^C5 -> 0.9952494151 | K5: =(D5+F5)*H5 -> 1.897603952 | L5: =((F5/(F5+D5))+(D5/(F5+D5))*EXP(-(D5+F5)*H5))^C5 -> 0.9978668022 | M5: =((F5/(F5+D5))+(D5/(((F5+D5)^2)*H5))*(1-EXP(-(D5+F5)*H5)))^C5 -> 0.9986147231 | N5: =(F5/(F5+D5))^C5 -> 0.9974905697 | O5: =D5*G5 -> 0.002515743333 | P5: =D5/F5 -> 0.002515743333
C6: 1 | D6: =1/3200 -> 0.0003125 | E6: =1/D6 -> 3200 | F6: =1/8.050378 -> 0.1242177697 | G6: =1/F6 -> 8.050378 | H6: =H$5 -> 10 | I6: =C6*D6*H6 -> 0.003125 | J6: 0.9968798777 | K6: =(D6+F6)*H6 -> 1.245302697 | L6: 0.9982129188 | M6: 0.9989256276 | N6: 0.99749057 | O6: =D6*G6 -> 0.002515743125 | P6: =D6/F6 -> 0.002515743125
C7: 1 | D7: =1/5000 -> 0.0002 | E7: 5000 | F7: =1/12.578716 -> 0.07949937021 | G7: 12.578716 | H7: =H$5 -> 10 | I7: 0.002 | J7: 0.9980019987 | K7: 0.7969937021 | L7: 0.9986215244 | M7: 0.999220164 | N7: 0.9974905699 | O7: =D7*G7 -> 0.0025157432 | P7: 0.0025157432
C8: 1 | D8: =1/1700 -> 0.0005882352941 | E8: 1700 | F8: =1/4.276763 -> 0.2338217011 | G8: 4.276763 | H8: 10 | I8: 0.005882352941 | J8: 0.9941349142 | K8: 2.344099364 | L8: 0.9977313087 | M8: 0.9984584008 | N8: 0.9974905701 | O8: =D8*G8 -> 0.002515742941 | P8: 0.002515742941
D9: =SUM(D5:D8) -> 0.00157692577 | E9: =1/D9 -> 634.1452583 | F9: =SUM(F5:F8) -> 0.6268230457 | G9: =AVERAGE(G5:G8) -> 7.5472295 | J9: =PRODUCT(J5:J8) -> 0.9843544261 | L9: =PRODUCT(L5:L8) -> 0.9924537654 | M9: =PRODUCT(M5:M8) -> 0.9952273095 | N9: 0.99
D10: Sys λ | E10: Sys MTBF | F10: Σ(1/MTTRi) | G10: Avg. MTTRi | J10: Sys R | L10: Sys Inherent A
F11: Not used with Sys A
B14: THEN
B15: System MTBF is the reciprocal of the sum of element failure rates (λ); Ebeling (5.5) p. 85 | D15: =SUM(D5:D8) -> 0.00157692577 | E15: =1/D15 -> 634.1452583
B17: System MTTR via limiting availability and system MTBF; Ebeling (11.29) p. 266 | G17: =((1-N9)/N9)*E15 -> 6.405507665 | H17: ¬ Exact Sys MTTR
B19: System MTTR via Σ(λi*MTTRi)/Σλi, a weighted average; Ebeling, (9.23) p. 202 | G19: =(SUM(O5:O8))/D15 -> 6.381386359 | H19: ¬ Approx. Sys MTTR
B21: System μ is not the sum of element repair rates (μi). System μ is the reciprocal of System MTTR. | F21: =1/G17 -> 0.1561156511
B23: Approx. system limiting availability via 1-Σ(λi/μi); Lewis (10.92) p. 315 | N23: =1-SUM(P5:P8) -> 0.9899370274
B25: Same as above except finds approx. limiting availability via 1-Σ(Sys MTTR/Sys MTBF) | N25: =1-(G19/E15) -> 0.9899370274
B27: Limiting availability via exact system MTBF and exact system MTTR; Ebeling (11.5) p. 255 | N27: =E15/(E15+G17) -> 0.99
B29: Limiting availability via exact system λ and exact system μ; Lewis (10.88) p. 315 | N29: =F21/(D15+F21) -> 0.99
B31: System Reliability for serial elements uses sys MTBF = Σ(1/λi); Ebeling (5.5) p. 85 | J31: =EXP(-D15*H5) -> 0.9843544261

Sheet Explore R & M Combinations
B1: EXPLORE the four combinations of "R" and "M" (in the form of MTBF and MTTR respectively)
B3: IF | I3: THEN
B4: Combination | C4: Number of Identical Serial Elements (N) | D4: Element Failure Rate (λi) | E4: Element MTBF (MTBFi) | F4: Element Repair Rate (μi) | G4: Element MTTR (MTTRi) | H4: Mission Time (t) | I4: Nλt | J4: Reliability From 0 to t (R) | K4: (λ+μ)t | L4: Point Availability, at t (AP) | M4: Average Availability, from 0 to t (AAvg) | N4: Limiting Availability, as t→∞ (AL) | O4: PERFORMANCE (effectiveness metric) in terms of uptime or mission readiness
B5: High MTBF, Low MTTR | C5: 50 | D5: =1/10000 -> 0.0001 | E5: =1/D5 -> 10000 | F5: =1/50 -> 0.02 | G5: =1/F5 -> 50 | H5: 10 | I5: =C5*D5*H5 -> 0.05 | J5: =(EXP(-D5*H5))^C5 -> 0.9512294245 | K5: =(D5+F5)*H5 -> 0.201 | L5: =((F5/(F5+D5))+(D5/(F5+D5))*EXP(-(D5+F5)*H5))^C5 -> 0.9556954877 | M5: =((F5/(F5+D5))+(D5/(((F5+D5)^2)*H5))*(1-EXP(-(D5+F5)*H5)))^C5 -> 0.9768605447 | N5: =(F5/(F5+D5))^C5 -> 0.7792860683 | O5: Best
B6: High MTBF, High MTTR | C6: 50 | D6: =1/10000 -> 0.0001 | E6: =1/D6 -> 10000 | F6: =1/100 -> 0.01 | G6: =1/F6 -> 100 | H6: 10 | I6: =C6*D6*H6 -> 0.05 | J6: 0.9512294245 | K6: =(D6+F6)*H6 -> 0.101 | L6: 0.9535336759 | M6: 0.9761051024 | N6: 0.6080388247 | O6: Good
B7: Low MTBF, Low MTTR | C7: 50 | D7: =1/5000 -> 0.0002 | E7: 5000 | F7: =1/50 -> 0.02 | G7: 50 | H7: 10 | I7: 0.1 | J7: 0.904837418 | K7: 0.202 | L7: 0.9133563643 | M7: 0.9542604666 | N7: 0.6080388247 | O7: Same as "Good" but unsafe
B8: Low MTBF, High MTTR | C8: 50 | D8: =1/5000 -> 0.0002 | E8: 5000 | F8: =1/100 -> 0.01 | G8: 100 | H8: 10 | I8: 0.1 | J8: 0.904837418 | K8: 0.102 | L8: 0.9092278438 | M8: 0.9527851321 | N8: 0.3715278821 | O8: Poor
B10: IF | I10: THEN
B11: Combination | C11: Number of Identical Serial Elements (N) | D11: Element Failure Rate (λi) | E11: Element MTBF (MTBFi) | F11: Element Repair Rate (μi) | G11: Element MTTR (MTTRi) | H11: Mission Time (t) | I11: Nλt | J11: Reliability From 0 to t (R) | K11: (λ+μ)t | L11: Point Availability, at t (AP) | M11: Average Availability, from 0 to t (AAvg) | N11: Limiting Availability, as t→∞ (AL) | O11: PERFORMANCE (effectiveness metric) in terms of uptime or mission readiness
B12: High MTBF, Low MTTR | C12: 50 | D12: =1/10000 -> 0.0001 | E12: =1/D12 -> 10000 | F12: =1/50 -> 0.02 | G12: =1/F12 -> 50 | H12: 100 | I12: =C12*D12*H12 -> 0.5 | J12: =(EXP(-D12*H12))^C12 -> 0.6065306597 | K12: =(D12+F12)*H12 -> 2.01 | L12: =((F12/(F12+D12))+(D12/(F12+D12))*EXP(-(D12+F12)*H12))^C12 -> 0.8058230331 | M12: =((F12/(F12+D12))+(D12/(((F12+D12)^2)*H12))*(1-EXP(-(D12+F12)*H12)))^C12 -> 0.8678120862 | N12: =(F12/(F12+D12))^C12 -> 0.7792860683 | O12: Best
B13: High MTBF, High MTTR | C13: 50 | D13: =1/10000 -> 0.0001 | E13: =1/D13 -> 10000 | F13: =1/100 -> 0.01 | G13: =1/F13 -> 100 | H13: 100 | I13: =C13*D13*H13 -> 0.5 | J13: 0.6065306597 | K13: =(D13+F13)*H13 -> 1.01 | L13: 0.7292505701 | M13: 0.8321355277 | N13: 0.6080388247 | O13: Good
B14: Low MTBF, Low MTTR | C14: 50 | D14: =1/5000 -> 0.0002 | E14: 5000 | F14: =1/50 -> 0.02 | G14: 50 | H14: 100 | I14: 1 | J14: 0.3678794412 | K14: 2.02 | L14: 0.649707664 | M14: 0.7533036334 | N14: 0.6080388247 | O14: Same as "Good" but unsafe
B15: Low MTBF, High MTTR | C15: 50 | D15: =1/5000 -> 0.0002 | E15: 5000 | F15: =1/100 -> 0.01 | G15: 100 | H15: 100 | I15: 1 | J15: 0.3678794412 | K15: 1.02 | L15: 0.5321496705 | M15: 0.692698284 | N15: 0.3715278821 | O15: Poor
B17: IF | I17: THEN
B18: Combination | C18: Number of Identical Serial Elements (N) | D18: Element Failure Rate (λi) | E18: Element MTBF (MTBFi) | F18: Element Repair Rate (μi) | G18: Element MTTR (MTTRi) | H18: Mission Time (t) | I18: Nλt | J18: Reliability From 0 to t (R) | K18: (λ+μ)t | L18: Point Availability, at t (AP) | M18: Average Availability, from 0 to t (AAvg) | N18: Limiting Availability, as t→∞ (AL) | O18: PERFORMANCE (effectiveness metric) in terms of uptime or mission readiness
B19: High MTBF, Low MTTR | C19: 50 | D19: =1/10000 -> 0.0001 | E19: =1/D19 -> 10000 | F19: =1/50 -> 0.02 | G19: =1/F19 -> 50 | H19: 1000 | I19: =C19*D19*H19 -> 5 | J19: =(EXP(-D19*H19))^C19 -> 0.006737946999 | K19: =(D19+F19)*H19 -> 20.1 | L19: =((F19/(F19+D19))+(D19/(F19+D19))*EXP(-(D19+F19)*H19))^C19 -> 0.7792860686 | M19: =((F19/(F19+D19))+(D19/(((F19+D19)^2)*H19))*(1-EXP(-(D19+F19)*H19)))^C19 -> 0.7890379887 | N19: =(F19/(F19+D19))^C19 -> 0.7792860683 | O19: Best
B20: High MTBF, High MTTR | C20: 50 | D20: =1/10000 -> 0.0001 | E20: =1/D20 -> 10000 | F20: =1/100 -> 0.01 | G20: =1/F20 -> 100 | H20: 1000 | I20: =C20*D20*H20 -> 5 | J20: 0.006737946999 | K20: =(D20+F20)*H20 -> 10.1 | L20: 0.6080513138 | M20: 0.6388803326 | N20: 0.6080388247 | O20: Good
B21: Low MTBF, Low MTTR | C21: 50 | D21: =1/5000 -> 0.0002 | E21: 5000 | F21: =1/50 -> 0.02 | G21: 50 | H21: 1000 | I21: 10 | J21: 4.539992976e-05 | K21: 20.2 | L21: 0.6080388252 | M21: 0.6232732877 | N21: 0.6080388247 | O21: Same as "Good" but unsafe
B22: Low MTBF, High MTTR | C22: 50 | D22: =1/5000 -> 0.0002 | E22: 5000 | F22: =1/100 -> 0.01 | G22: 100 | H22: 1000 | I22: 10 | J22: 4.539992976e-05 | K22: 10.2 | L22: 0.3715416922 | M22: 0.4097566723 | N22: 0.3715278821 | O22: Poor
B24: IF | I24: THEN
B25: Combination | C25: Number of Identical Serial Elements (N) | D25: Element Failure Rate (λi) | E25: Element MTBF (MTBFi) | F25: Element Repair Rate (μi) | G25: Element MTTR (MTTRi) | H25: Mission Time (t) | I25: Nλt | J25: Reliability From 0 to t (R) | K25: (λ+μ)t | L25: Point Availability, at t (AP) | M25: Average Availability, from 0 to t (AAvg) | N25: Limiting Availability, as t→∞ (AL) | O25: PERFORMANCE (effectiveness metric) in terms of uptime or mission readiness
B26: High MTBF, Low MTTR | C26: 50 | D26: =1/10000 -> 0.0001 | E26: =1/D26 -> 10000 | F26: =1/50 -> 0.02 | G26: =1/F26 -> 50 | H26: 10000 | I26: =C26*D26*H26 -> 50 | J26: =(EXP(-D26*H26))^C26 -> 1.928749848e-22 | K26: =(D26+F26)*H26 -> 201 | L26: =((F26/(F26+D26))+(D26/(F26+D26))*EXP(-(D26+F26)*H26))^C26 -> 0.7792860683 | M26: =((F26/(F26+D26))+(D26/(((F26+D26)^2)*H26))*(1-EXP(-(D26+F26)*H26)))^C26 -> 0.7802559205 | N26: =(F26/(F26+D26))^C26 -> 0.7792860683 | O26: Best
B27: High MTBF, High MTTR | C27: 50 | D27: =1/10000 -> 0.0001 | E27: =1/D27 -> 10000 | F27: =1/100 -> 0.01 | G27: =1/F27 -> 100 | H27: 10000 | I27: =C27*D27*H27 -> 50 | J27: 1.928749848e-22 | K27: =(D27+F27)*H27 -> 101 | L27: 0.6080388247 | M27: 0.6110562312 | N27: 0.6080388247 | O27: Good
B28: Low MTBF, Low MTTR | C28: 50 | D28: =1/5000 -> 0.0002 | E28: 5000 | F28: =1/50 -> 0.02 | G28: 50 | H28: 10000 | I28: 100 | J28: 3.720075976e-44 | K28: 202 | L28: 0.6080388247 | M28: 0.6095456982 | N28: 0.6080388247 | O28: Same as "Good" but unsafe
B29: Low MTBF, High MTTR | C29: 50 | D29: =1/5000 -> 0.0002 | E29: 5000 | F29: =1/100 -> 0.01 | G29: 100 | H29: 10000 | I29: 100 | J29: 3.720075976e-44 | K29: 102 | L29: 0.3715278821 | M29: 0.3751878653 | N29: 0.3715278821 | O29: Poor

Sheet Tool, Calculate R & A
A1: CALCULATE and COMPARE Reliability and Inherent Availability (based on constant failure and repair rates)
B3: Objective:
B4: 1. Use element failure rate, element repair rate, and mission time to calculate and compare the reliability for a new item and the three types of inherent availability for
B5: one or two or more identical items (elements) in a series configuration. Use column B to specify the number of serial items.
B7: Nomenclature, Assumptions, and Observations:
B8: Input Data (yellow-shaded headers or cell): N, λ, μ, t, and r where …
B9: 1. N = number of identical elements in a series configuration.
B10: 2. λ = 1/MTBF and μ = 1/MTTR where MTBF = mean time between failure and MTTR = mean time to repair. Mean is the same as average.
B11: 3. λ and μ are constant over time since the exponential distribution is used to model the failure distribution and the repair distribution.
B12: 4. λ, μ, and t must have the same units of time (e.g., hours). Mission time = t.
B13: 5. For design purposes, view MTBF as a lower-bound parameter and MTTR as an upper-bound parameter.
B14: 6. r is the number repairs (or spares needed) during the mission (from 0 to t). When r = 0, then P = R. When r > 0, then P > R since spares increase mission success.
B15: Output Data: R, A, and P where …
B16: 7. R = Reliability, the probability an item will perform its intended function with no failure during the time interval from 0 to t. R is 0.3679 or less when Nλt is 1.0 or more.
B17: 8. A = Inherent Availability, the probability of mission readiness at point t, the average from 0 to t, and as t becomes large (limiting or steady-state).
B18: 9. As mission time (t) increases, first Point Availability and then Average Availability approximate Limiting Availability.
B19: 10. P = the probability of r or less repairs (spares needed) from 0 to t via the cumulative Poisson distribution. | K19: Let r = | L19: 2
B20: 11. The Poisson distribution does not account for repair time since it assumes failures are immediately repaired or replaced.
A23: Scenario | B23: Number of Identical Serial Elements (N) | C23: Element Failure Rate (λi) | D23: Element MTBF (MTBFi) | E23: Element Repair Rate (μi) | F23: Element MTTR (MTTRi) | G23: Mission Time (t) | H23: Nλt | I23: Reliability From 0 to t (R) | J23: (λ+μ)t | K23: Point Availability, at t (AP) | L23: Average Availability, from 0 to t (AAvg) | M23: Limiting Availability, as t→∞ (AL) | N23: Probability of r or Less Repair Events from 0 to t (P)
A25: Check: Ebeling (ex 11.2) p. 258 | B25: 1 | C25: =1/200 -> 0.005 | D25: =1/C25 -> 200 | E25: =1/10 -> 0.1 | F25: =1/E25 -> 10 | G25: 10 | H25: =B25*C25*G25 -> 0.05 | I25: =(EXP(-C25*G25))^B25 -> 0.9512294245 | J25: =(C25+E25)*G25 -> 1.05 | K25: =((E25/(E25+C25))+(C25/(E25+C25))*EXP(-(C25+E25)*G25))^B25 -> 0.9690446547 | L25: =((E25/(E25+C25))+(C25/(((E25+C25)^2)*G25))*(1-EXP(-(C25+E25)*G25)))^B25 -> 0.9818622336 | M25: =(E25/(E25+C25))^B25 -> 0.9523809524 | N25: =POISSON($L$19,H25,TRUE) -> 0.9999799325 | O25: ← Baseline Calculation Check (ref: 1st worksheet, row 25)
A26: Scenario 1 | B26: 1 | C26: =1/2000 -> 0.0005 | D26: =1/C26 -> 2000 | E26: =1/10 -> 0.1 | F26: =1/E26 -> 10 | G26: 85 | H26: =B26*C26*G26 -> 0.0425 | I26: =(EXP(-C26*G26))^B26 -> 0.9583904655 | J26: =(C26+E26)*G26 -> 8.5425 | K26: =((E26/(E26+C26))+(C26/(E26+C26))*EXP(-(C26+E26)*G26))^B26 -> 0.9950258458 | L26: =((E26/(E26+C26))+(C26/(((E26+C26)^2)*G26))*(1-EXP(-(C26+E26)*G26)))^B26 -> 0.9956071588 | M26: =(E26/(E26+C26))^B26 -> 0.9950248756 | N26: =POISSON($L$19,H26,TRUE) -> 0.9999876067
A27: Scenario 2 | B27: 1 | C27: =1/2000 -> 0.0005 | D27: 2000 | E27: 0.1 | F27: 10 | G27: 86 | H27: 0.043 | I27: 0.9579113901 | J27: 8.643 | K27: 0.995025753 | L27: 0.9956003988 | M27: 0.9950248756 | N27: 0.9999871689
A28: Scenario 3 | B28: 1 | C28: 0.0005 | D28: 2000 | E28: 0.1 | F28: 10 | G28: 87 | H28: 0.0435 | I28: 0.9574325541 | J28: 8.7435 | K28: 0.9950256691 | L28: 0.9955937932 | M28: 0.9950248756 | N28: 0.9999867211
A29: Scenario 4 | B29: 1 | C29: 0.0005 | D29: 2000 | E29: 0.1 | F29: 10 | G29: 88 | H29: 0.044 | I29: 0.9569539575 | J29: 8.844 | K29: 0.9950255933 | L29: 0.9955873368 | M29: 0.9950248756 | N29: 0.999986263
A30: Scenario 5 | B30: 1 | C30: 0.0005 | D30: 2000 | E30: 0.1 | F30: 10 | G30: 89 | H30: 0.0445 | I30: 0.9564756001 | J30: 8.9445 | K30: 0.9950255246 | L30: 0.9955810247 | M30: 0.9950248756 | N30: 0.9999857947
A31: Scenario 6 | B31: 1 | C31: 0.0005 | D31: 2000 | E31: 0.1 | F31: 10 | G31: 90 | H31: 0.045 | I31: 0.9559974818 | J31: 9.045 | K31: 0.9950254626 | L31: 0.9955748521 | M31: 0.9950248756 | N31: 0.999985316
A32: Scenario 7 | B32: 1 | C32: 0.0005 | D32: 2000 | E32: 0.1 | F32: 10 | G32: 91 | H32: 0.0455 | I32: 0.9555196026 | J32: 9.1455 | K32: 0.9950254065 | L32: 0.9955688146 | M32: 0.9950248756 | N32: 0.9999848267
A33: Scenario 8 | B33: 1 | C33: 0.0005 | D33: 2000 | E33: 0.1 | F33: 10 | G33: 92 | H33: 0.046 | I33: 0.9550419622 | J33: 9.246 | K33: 0.9950253557 | L33: 0.9955629077 | M33: 0.9950248756 | N33: 0.9999843268
A34: Scenario 9 | B34: 1 | C34: 0.0005 | D34: 2000 | E34: 0.1 | F34: 10 | G34: 93 | H34: 0.0465 | I34: 0.9545645606 | J34: 9.3465 | K34: 0.9950253098 | L34: 0.9955571273 | M34: 0.9950248756 | N34: 0.9999838162
A35: Scenario 10 | B35: 1 | C35: 0.0005 | D35: 2000 | E35: 0.1 | F35: 10 | G35: 94 | H35: 0.047 | I35: 0.9540873976 | J35: 9.447 | K35: 0.9950252683 | L35: 0.9955514694 | M35: 0.9950248756 | N35: 0.9999832948

Sheet TOOL, Graph R & A
A1: GRAPH Reliability and the three forms of Inherent Availability over time for a single item (element or system)
A3: 1 | B3: RMA Input & Output Data
A4: ­ Scale Factor for Time Axis | B4: Failure Rate (λ) | C4: Uptime (MTBF) | D4: Repair Rate (μ) | E4: Downtime (MTTR) | F4: Mission Time (t) | G4: Nλt | H4: Reliability | I4: (λ+μ)t | J4: Point Availability | K4: Average Availability | L4: Limiting Availability
A5: 0 | B5: =1/C5 -> 0.0005 | C5: 2000 | D5: =1/E5 -> 0.1 | E5: 10 | F5: =$A$3*A5 -> 0 | G5: =#REF!*B5*F5 ->  | H5: =EXP(-B$5*F5) -> 1 | I5: =(B5+D5)*F5 -> 0 | J5: =(D$5/(D$5+B$5))+(B$5/(D$5+B$5))*EXP(-(B$5+D$5)*F5) -> 1 | L5: =D$5/(D$5+B$5) -> 0.9950248756
A6: 1 | F6: =$A$3*A6 -> 1 | G6: =#REF!*B6*F6 ->  | H6: =EXP(-B$5*F6) -> 0.999500125 | I6: =(B6+D6)*F6 -> 0 | J6: =(D$5/(D$5+B$5))+(B$5/(D$5+B$5))*EXP(-(B$5+D$5)*F6) -> 0.999524304 | K6: =(D$5/(D$5+B$5))+(B$5/(((D$5+B$5)^2)*F6))*(1-EXP(-(B$5+D$5)*F6)) -> 0.9997581687 | L6: =D$5/(D$5+B$5) -> 0.9950248756
A7: 2 | F7: 2 | G7: =#REF!*B7*F7 ->  | H7: 0.9990004998 | I7: 0 | J7: 0.9990940917 | K7: 0.9995318821 | L7: 0.9950248756
A8: 3 | F8: 3 | G8: =#REF!*B8*F8 ->  | H8: 0.9985011244 | I8: 0 | J8: 0.9987050141 | K8: 0.9993200197 | L8: 0.9950248756
A9: 4 | F9: 4 | G9: =#REF!*B9*F9 ->  | H9: 0.9980019987 | I9: 0 | J9: 0.998353138 | K9: 0.9991215472 | L9: 0.9950248756
A10: 5 | F10: 5 | G10: =#REF!*B10*F10 ->  | H10: 0.9975031224 | I10: 0 | J10: 0.9980349066 | K10: 0.9989355093 | L10: 0.9950248756
A11: 6 | F11: 6 | G11: =#REF!*B11*F11 ->  | H11: 0.9970044955 | I11: 0 | J11: 0.9977471028 | K11: 0.9987610235 | L11: 0.9950248756
A12: 7 | F12: 7 | G12: =#REF!*B12*F12 ->  | H12: 0.9965061179 | I12: 0 | J12: 0.9974868174 | K12: 0.9985972745 | L12: 0.9950248756
A13: 8 | F13: 8 | G13: =#REF!*B13*F13 ->  | H13: 0.9960079893 | I13: 0 | J13: 0.9972514191 | K13: 0.9984435086 | L13: 0.9950248756
A14: 9 | F14: 9 | G14: =#REF!*B14*F14 ->  | H14: 0.9955101098 | I14: 0 | J14: 0.9970385284 | K14: 0.9982990289 | L14: 0.9950248756
A15: 10 | F15: 10 | G15: =#REF!*B15*F15 ->  | H15: 0.9950124792 | I15: 0 | J15: 0.9968459932 | K15: 0.9981631908 | L15: 0.9950248756
A16: 11 | F16: 11 | G16: =#REF!*B16*F16 ->  | H16: 0.9945150973 | I16: 0 | J16: 0.9966718673 | K16: 0.9980353982 | L16: 0.9950248756
A17: 12 | F17: 12 | G17: =#REF!*B17*F17 ->  | H17: 0.9940179641 | I17: 0 | J17: 0.9965143903 | K17: 0.9979150992 | L17: 0.9950248756
A18: 13 | F18: 13 | G18: =#REF!*B18*F18 ->  | H18: 0.9935210793 | I18: 0 | J18: 0.9963719706 | K18: 0.997801783 | L18: 0.9950248756
A19: 14 | F19: 14 | G19: =#REF!*B19*F19 ->  | H19: 0.9930244429 | I19: 0 | J19: 0.9962431682 | K19: 0.9976949764 | L19: 0.9950248756
A20: 15 | F20: 15 | G20: =#REF!*B20*F20 ->  | H20: 0.9925280548 | I20: 0 | J20: 0.9961266813 | K20: 0.9975942413 | L20: 0.9950248756
A21: 16 | F21: 16 | G21: =#REF!*B21*F21 ->  | H21: 0.9920319148 | I21: 0 | J21: 0.9960213323 | K21: 0.9974991715 | L21: 0.9950248756
A22: 17 | F22: 17 | G22: =#REF!*B22*F22 ->  | H22: 0.9915360229 | I22: 0 | J22: 0.9959260562 | K22: 0.9974093906 | L22: 0.9950248756
A23: 18 | F23: 18 | G23: =#REF!*B23*F23 ->  | H23: 0.9910403788 | I23: 0 | J23: 0.9958398899 | K23: 0.9973245495 | L23: 0.9950248756
A24: 19 | F24: 19 | G24: =#REF!*B24*F24 ->  | H24: 0.9905449824 | I24: 0 | J24: 0.9957619624 | K24: 0.9972443245 | L24: 0.9950248756
A25: 20 | F25: 20 | G25: =#REF!*B25*F25 ->  | H25: 0.9900498337 | I25: 0 | J25: 0.9956914859 | K25: 0.997168415 | L25: 0.9950248756
A26: 21 | F26: 21 | G26: =#REF!*B26*F26 ->  | H26: 0.9895549326 | I26: 0 | J26: 0.9956277481 | K26: 0.997096542 | L26: 0.9950248756
A27: 22 | F27: 22 | G27: =#REF!*B27*F27 ->  | H27: 0.9890602788 | I27: 0 | J27: 0.9955701045 | K27: 0.9970284466 | L27: 0.9950248756
A28: 23 | F28: 23 | G28: =#REF!*B28*F28 ->  | H28: 0.9885658722 | I28: 0 | J28: 0.9955179725 | K28: 0.9969638882 | L28: 0.9950248756
A29: 24 | F29: 24 | G29: =#REF!*B29*F29 ->  | H29: 0.9880717129 | I29: 0 | J29: 0.9954708251 | K29: 0.996902643 | L29: 0.9950248756
A30: 25 | F30: 25 | G30: =#REF!*B30*F30 ->  | H30: 0.9875778005 | I30: 0 | J30: 0.9954281857 | K30: 0.9968445032 | L30: 0.9950248756
A31: 26 | F31: 26 | G31: =#REF!*B31*F31 ->  | H31: 0.987084135 | I31: 0 | J31: 0.9953896232 | K31: 0.9967892755 | L31: 0.9950248756
A32: 27 | F32: 27 | G32: =#REF!*B32*F32 ->  | H32: 0.9865907163 | I32: 0 | J32: 0.9953547479 | K32: 0.9967367798 | L32: 0.9950248756
A33: 28 | F33: 28 | G33: =#REF!*B33*F33 ->  | H33: 0.9860975443 | I33: 0 | J33: 0.9953232072 | K33: 0.9966868489 | L33: 0.9950248756
A34: 29 | F34: 29 | G34: =#REF!*B34*F34 ->  | H34: 0.9856046187 | I34: 0 | J34: 0.9952946823 | K34: 0.9966393267 | L34: 0.9950248756
A35: 30 | F35: 30 | G35: =#REF!*B35*F35 ->  | H35: 0.9851119396 | I35: 0 | J35: 0.9952688848 | K35: 0.9965940681 | L35: 0.9950248756
A36: 31 | F36: 31 | G36: =#REF!*B36*F36 ->  | H36: 0.9846195068 | I36: 0 | J36: 0.9952455538 | K36: 0.9965509376 | L36: 0.9950248756
A37: 32 | F37: 32 | G37: =#REF!*B37*F37 ->  | H37: 0.9841273201 | I37: 0 | J37: 0.9952244537 | K37: 0.9965098092 | L37: 0.9950248756
A38: 33 | F38: 33 | G38: =#REF!*B38*F38 ->  | H38: 0.9836353794 | I38: 0 | J38: 0.9952053711 | K38: 0.996470565 | L38: 0.9950248756
A39: 34 | F39: 34 | G39: =#REF!*B39*F39 ->  | H39: 0.9831436846 | I39: 0 | J39: 0.995188113 | K39: 0.9964330954 | L39: 0.9950248756
A40: 35 | F40: 35 | G40: =#REF!*B40*F40 ->  | H40: 0.9826522357 | I40: 0 | J40: 0.9951725051 | K40: 0.9963972978 | L40: 0.9950248756
A41: 36 | F41: 36 | G41: =#REF!*B41*F41 ->  | H41: 0.9821610324 | I41: 0 | J41: 0.9951583895 | K41: 0.9963630764 | L41: 0.9950248756
A42: 37 | F42: 37 | G42: =#REF!*B42*F42 ->  | H42: 0.9816700746 | I42: 0 | J42: 0.9951456236 | K42: 0.9963303419 | L42: 0.9950248756
A43: 38 | F43: 38 | G43: =#REF!*B43*F43 ->  | H43: 0.9811793622 | I43: 0 | J43: 0.9951340783 | K43: 0.9962990107 | L43: 0.9950248756
A44: 39 | F44: 39 | G44: =#REF!*B44*F44 ->  | H44: 0.9806888952 | I44: 0 | J44: 0.9951236369 | K44: 0.9962690045 | L44: 0.9950248756
A45: 40 | F45: 40 | G45: =#REF!*B45*F45 ->  | H45: 0.9801986733 | I45: 0 | J45: 0.9951141939 | K45: 0.9962402503 | L45: 0.9950248756
A46: 41 | F46: 41 | G46: =#REF!*B46*F46 ->  | H46: 0.9797086965 | I46: 0 | J46: 0.9951056537 | K46: 0.9962126796 | L46: 0.9950248756
A47: 42 | F47: 42 | G47: =#REF!*B47*F47 ->  | H47: 0.9792189646 | I47: 0 | J47: 0.9950979301 | K47: 0.9961862284 | L47: 0.9950248756
A48: 43 | F48: 43 | G48: =#REF!*B48*F48 ->  | H48: 0.9787294775 | I48: 0 | J48: 0.995090945 | K48: 0.9961608365 | L48: 0.9950248756
A49: 44 | F49: 44 | G49: =#REF!*B49*F49 ->  | H49: 0.9782402351 | I49: 0 | J49: 0.9950846278 | K49: 0.9961364478 | L49: 0.9950248756
A50: 45 | F50: 45 | G50: =#REF!*B50*F50 ->  | H50: 0.9777512372 | I50: 0 | J50: 0.9950789146 | K50: 0.9961130095 | L50: 0.9950248756
A51: 46 | F51: 46 | G51: =#REF!*B51*F51 ->  | H51: 0.9772624838 | I51: 0 | J51: 0.9950737477 | K51: 0.9960904721 | L51: 0.9950248756
A52: 47 | F52: 47 | G52: =#REF!*B52*F52 ->  | H52: 0.9767739747 | I52: 0 | J52: 0.9950690748 | K52: 0.9960687891 | L52: 0.9950248756
A53: 48 | F53: 48 | G53: =#REF!*B53*F53 ->  | H53: 0.9762857098 | I53: 0 | J53: 0.9950648487 | K53: 0.9960479169 | L53: 0.9950248756
A54: 49 | F54: 49 | G54: =#REF!*B54*F54 ->  | H54: 0.9757976889 | I54: 0 | J54: 0.9950610267 | K54: 0.9960278147 | L54: 0.9950248756
A55: 50 | F55: 50 | G55: =#REF!*B55*F55 ->  | H55: 0.975309912 | I55: 0 | J55: 0.9950575701 | K55: 0.9960084438 | L55: 0.9950248756
A56: 51 | F56: 51 | G56: =#REF!*B56*F56 ->  | H56: 0.974822379 | I56: 0 | J56: 0.995054444 | K56: 0.995989768 | L56: 0.9950248756
A57: 52 | F57: 52 | G57: =#REF!*B57*F57 ->  | H57: 0.9743350896 | I57: 0 | J57: 0.9950516168 | K57: 0.9959717534 | L57: 0.9950248756
A58: 53 | F58: 53 | G58: =#REF!*B58*F58 ->  | H58: 0.9738480438 | I58: 0 | J58: 0.99504906 | K58: 0.9959543678 | L58: 0.9950248756
A59: 54 | F59: 54 | G59: =#REF!*B59*F59 ->  | H59: 0.9733612415 | I59: 0 | J59: 0.9950467476 | K59: 0.9959375811 | L59: 0.9950248756
A60: 55 | F60: 55 | G60: =#REF!*B60*F60 ->  | H60: 0.9728746826 | I60: 0 | J60: 0.9950446563 | K60: 0.9959213648 | L60: 0.9950248756
A61: 56 | F61: 56 | G61: =#REF!*B61*F61 ->  | H61: 0.9723883668 | I61: 0 | J61: 0.995042765 | K61: 0.9959056921 | L61: 0.9950248756
A62: 57 | F62: 57 | G62: =#REF!*B62*F62 ->  | H62: 0.9719022941 | I62: 0 | J62: 0.9950410545 | K62: 0.9958905378 | L62: 0.9950248756
A63: 58 | F63: 58 | G63: =#REF!*B63*F63 ->  | H63: 0.9714164645 | I63: 0 | J63: 0.9950395075 | K63: 0.9958758779 | L63: 0.9950248756
A64: 59 | F64: 59 | G64: =#REF!*B64*F64 ->  | H64: 0.9709308776 | I64: 0 | J64: 0.9950381085 | K64: 0.9958616901 | L64: 0.9950248756
A65: 60 | F65: 60 | G65: =#REF!*B65*F65 ->  | H65: 0.9704455335 | I65: 0 | J65: 0.9950368433 | K65: 0.995847953 | L65: 0.9950248756
A66: 61 | F66: 61 | G66: =#REF!*B66*F66 ->  | H66: 0.9699604321 | I66: 0 | J66: 0.995035699 | K66: 0.9958346466 | L66: 0.9950248756
A67: 62 | F67: 62 | G67: =#REF!*B67*F67 ->  | H67: 0.9694755731 | I67: 0 | J67: 0.9950346641 | K67: 0.9958217519 | L67: 0.9950248756
A68: 63 | F68: 63 | G68: =#REF!*B68*F68 ->  | H68: 0.9689909565 | I68: 0 | J68: 0.9950337282 | K68: 0.9958092509 | L68: 0.9950248756
A69: 64 | F69: 64 | G69: =#REF!*B69*F69 ->  | H69: 0.9685065821 | I69: 0 | J69: 0.9950328817 | K69: 0.9957971266 | L69: 0.9950248756
A70: 65 | F70: =$A$3*A70 -> 65 | G70: =#REF!*B70*F70 ->  | H70: =EXP(-B$5*F70) -> 0.9680224498 | I70: =(B70+D70)*F70 -> 0 | J70: =(D$5/(D$5+B$5))+(B$5/(D$5+B$5))*EXP(-(B$5+D$5)*F70) -> 0.9950321162 | K70: =(D$5/(D$5+B$5))+(B$5/(((D$5+B$5)^2)*F70))*(1-EXP(-(B$5+D$5)*F70)) -> 0.995785363 | L70: =D$5/(D$5+B$5) -> 0.9950248756
A71: 66 | F71: 66 | G71: =#REF!*B71*F71 ->  | H71: 0.9675385596 | I71: 0 | J71: 0.9950314239 | K71: 0.9957739448 | L71: 0.9950248756
A72: 67 | F72: 67 | G72: =#REF!*B72*F72 ->  | H72: 0.9670549112 | I72: 0 | J72: 0.9950307978 | K72: 0.9957628577 | L72: 0.9950248756
A73: 68 | F73: 68 | G73: =#REF!*B73*F73 ->  | H73: 0.9665715046 | I73: 0 | J73: 0.9950302316 | K73: 0.9957520879 | L73: 0.9950248756
A74: 69 | F74: 69 | G74: =#REF!*B74*F74 ->  | H74: 0.9660883397 | I74: 0 | J74: 0.9950297195 | K74: 0.9957416224 | L74: 0.9950248756
A75: 70 | F75: 70 | G75: =#REF!*B75*F75 ->  | H75: 0.9656054163 | I75: 0 | J75: 0.9950292563 | K75: 0.995731449 | L75: 0.9950248756
A76: 71 | F76: 71 | G76: =#REF!*B76*F76 ->  | H76: 0.9651227342 | I76: 0 | J76: 0.9950288375 | K76: 0.995721556 | L76: 0.9950248756
A77: 72 | F77: 72 | G77: =#REF!*B77*F77 ->  | H77: 0.9646402935 | I77: 0 | J77: 0.9950284586 | K77: 0.9957119322 | L77: 0.9950248756
A78: 73 | F78: 73 | G78: =#REF!*B78*F78 ->  | H78: 0.9641580939 | I78: 0 | J78: 0.9950281161 | K78: 0.9957025672 | L78: 0.9950248756
A79: 74 | F79: 74 | G79: =#REF!*B79*F79 ->  | H79: 0.9636761353 | I79: 0 | J79: 0.9950278062 | K79: 0.9956934508 | L79: 0.9950248756
A80: 75 | F80: 75 | G80: =#REF!*B80*F80 ->  | H80: 0.9631944177 | I80: 0 | J80: 0.995027526 | K80: 0.9956845737 | L80: 0.9950248756
A81: 76 | F81: 76 | G81: =#REF!*B81*F81 ->  | H81: 0.9627129409 | I81: 0 | J81: 0.9950272726 | K81: 0.9956759266 | L81: 0.9950248756
A82: 77 | F82: 77 | G82: =#REF!*B82*F82 ->  | H82: 0.9622317047 | I82: 0 | J82: 0.9950270434 | K82: 0.995667501 | L82: 0.9950248756
A83: 78 | F83: 78 | G83: =#REF!*B83*F83 ->  | H83: 0.9617507091 | I83: 0 | J83: 0.9950268361 | K83: 0.9956592887 | L83: 0.9950248756
A84: 79 | F84: 79 | G84: =#REF!*B84*F84 ->  | H84: 0.961269954 | I84: 0 | J84: 0.9950266487 | K84: 0.9956512817 | L84: 0.9950248756
A85: 80 | F85: 80 | G85: =#REF!*B85*F85 ->  | H85: 0.9607894392 | I85: 0 | J85: 0.9950264791 | K85: 0.9956434727 | L85: 0.9950248756
A86: 81 | F86: 81 | G86: =#REF!*B86*F86 ->  | H86: 0.9603091645 | I86: 0 | J86: 0.9950263258 | K86: 0.9956358546 | L86: 0.9950248756
A87: 82 | F87: 82 | G87: =#REF!*B87*F87 ->  | H87: 0.9598291299 | I87: 0 | J87: 0.9950261872 | K87: 0.9956284204 | L87: 0.9950248756
A88: 83 | F88: 83 | G88: =#REF!*B88*F88 ->  | H88: 0.9593493353 | I88: 0 | J88: 0.9950260618 | K88: 0.9956211638 | L88: 0.9950248756
A89: 84 | F89: 84 | G89: =#REF!*B89*F89 ->  | H89: 0.9588697806 | I89: 0 | J89: 0.9950259484 | K89: 0.9956140786 | L89: 0.9950248756
A90: 85 | F90: 85 | G90: =#REF!*B90*F90 ->  | H90: 0.9583904655 | I90: 0 | J90: 0.9950258458 | K90: 0.9956071588 | L90: 0.9950248756
A91: 86 | F91: 86 | G91: =#REF!*B91*F91 ->  | H91: 0.9579113901 | I91: 0 | J91: 0.995025753 | K91: 0.9956003988 | L91: 0.9950248756
A92: 87 | F92: 87 | G92: =#REF!*B92*F92 ->  | H92: 0.9574325541 | I92: 0 | J92: 0.9950256691 | K92: 0.9955937932 | L92: 0.9950248756
A93: 88 | F93: 88 | G93: =#REF!*B93*F93 ->  | H93: 0.9569539575 | I93: 0 | J93: 0.9950255933 | K93: 0.9955873368 | L93: 0.9950248756
A94: 89 | F94: 89 | G94: =#REF!*B94*F94 ->  | H94: 0.9564756001 | I94: 0 | J94: 0.9950255246 | K94: 0.9955810247 | L94: 0.9950248756
A95: 90 | F95: 90 | G95: =#REF!*B95*F95 ->  | H95: 0.9559974818 | I95: 0 | J95: 0.9950254626 | K95: 0.9955748521 | L95: 0.9950248756
A96: 91 | F96: 91 | G96: =#REF!*B96*F96 ->  | H96: 0.9555196026 | I96: 0 | J96: 0.9950254065 | K96: 0.9955688146 | L96: 0.9950248756
A97: 92 | F97: 92 | G97: =#REF!*B97*F97 ->  | H97: 0.9550419622 | I97: 0 | J97: 0.9950253557 | K97: 0.9955629077 | L97: 0.9950248756
A98: 93 | F98: 93 | G98: =#REF!*B98*F98 ->  | H98: 0.9545645606 | I98: 0 | J98: 0.9950253098 | K98: 0.9955571273 | L98: 0.9950248756
A99: 94 | F99: 94 | G99: =#REF!*B99*F99 ->  | H99: 0.9540873976 | I99: 0 | J99: 0.9950252683 | K99: 0.9955514694 | L99: 0.9950248756
A100: 95 | F100: 95 | G100: =#REF!*B100*F100 ->  | H100: 0.9536104731 | I100: 0 | J100: 0.9950252307 | K100: 0.9955459303 | L100: 0.9950248756
A101: 96 | F101: 96 | G101: =#REF!*B101*F101 ->  | H101: 0.9531337871 | I101: 0 | J101: 0.9950251968 | K101: 0.9955405061 | L101: 0.9950248756
A102: 97 | F102: 97 | G102: =#REF!*B102*F102 ->  | H102: 0.9526573393 | I102: 0 | J102: 0.9950251661 | K102: 0.9955351935 | L102: 0.9950248756
A103: 98 | F103: 98 | G103: =#REF!*B103*F103 ->  | H103: 0.9521811297 | I103: 0 | J103: 0.9950251383 | K103: 0.995529989 | L103: 0.9950248756
A104: 99 | F104: 99 | G104: =#REF!*B104*F104 ->  | H104: 0.9517051581 | I104: 0 | J104: 0.9950251132 | K104: 0.9955248894 | L104: 0.9950248756
A105: 100 | F105: 100 | G105: =#REF!*B105*F105 ->  | H105: 0.9512294245 | I105: 0 | J105: 0.9950250905 | K105: 0.9955198915 | L105: 0.9950248756

Sheet TOOL, Allocate Availability
A1: TOOL: Allocate Availability and Add Margin as a Function of Confidence
C2: See Note 3
A3: IF (from management) | D3: AND (analyst inputs and interim calculations) | G3: THEN
A4: Number of Serial Elements (n) | B4: Availability Requirement (A Req) | C4: Mgt Confidence in obtaining "A req" (50% ≤ p ≤ 100%) | D4: z score and error for Perfect A | E4: Standard Deviation for Adj Avail Req | F4: Margin (M) | G4: Availability Requirement with Margin | H4: Element Availability with Margin
A5: 37 | B5: 0.96 | C5: 0.8 | D5: 5.2 | E5: =(1-D6-B5)/(D5-C6) -> 0.006987613859 | F5: =G5-B5 -> 0.003664407934 | G5: =IF(C5<0.55, (1+B5)/2, 1-(D5*E5)) -> 0.9636644079 | H5: =G5^(1/A5) -> 0.9990001713
B6: =B5^(1/A5) -> 0.9988973113 | C6: =_xlfn.NORM.S.INV(C5-0.5) -> -0.5244005127 | D6: =1-_xlfn.NORM.S.DIST(D5,TRUE) -> 9.964426317e-08 | G6: See "A Req" | H6: See "A Req allocated no Margin"
B7: Allocated, no Margin | C7: z score for p | D7: Right Tail Error, ε
A8: Minimum Mission Time (t) | B8: Lower Bound System Reliability (RL) | D8: Lower Bound Element Reliability (RLi) | G8: Lower Bound System Life (MTBFL) | H8: Lower Bound Element Life (MTBFLi)
A9: 24 | B9: 0.9763 | D9: =B9^(1/A5) -> 0.999351957 | F9: See Note 1 | G9: =-A9/LN(B9) -> 1000.610258 | H9: =-A9/LN(D9) -> 37022.57953
G12: Upper Bound System Repair Time (MTTRU) | H12: Upper Bound Element Repair Time (MTTRUi)
F13: See Note 1 | G13: =G9*(1-G5)/G5 -> 37.72865931 | H13: =H9*(1-H5)/H5 -> 37.05328613
A15: Input data uses entries from above | F15: See Note 2 | G15: =G9/(G9+G13) -> 0.9636644079 | H15: =(H9/(H9+H13))^A5 -> 0.9636644079
A16: IF | C16: THEN
A17: Avail Req | B17: Mgt Conf, p | C17: A Req w. M
A18: =B5 -> 0.96 | B18: 0.5 | C18: =IF(B18<0.55, (1+$B$5)/2, 1-($D$5*(1-$B$5)/($D$5-_xlfn.NORM.S.INV(B18-0.5)))) -> 0.98
B19: 0.55 | C19: =IF(B19<0.55, (1+$B$5)/2, 1-($D$5*(1-$B$5)/($D$5-_xlfn.NORM.S.INV(B19-0.5)))) -> 0.9696122063
B20: 0.6 | C20: 0.9679089184
B21: 0.65 | C21: 0.9666476034
B22: 0.7 | C22: 0.9655721549
B23: 0.75 | C23: 0.9645926695
B24: 0.8 | C24: 0.9636643174
B25: 0.85 | C25: 0.9627595227
B26: 0.9 | C26: 0.961858287
B27: 0.95 | C27: 0.9609438178
B28: 1 | C28: 0.96
